bitfinex-derivatives/quotes_BNBF0:USTF0_20250603
["timestamp","ask_amount","ask_price","bid_price","bid_amount"]
[1748922031722,0.93063459,667.13,666.88,0.29990403]
[1748922031925,0.93063463,667.12,666.88,0.29990403]
[1748922032126,0.93063365,667.11,666.88,0.29990403]
[1748922032320,1.816,667.14,666.88,0.29990403]
[1748922034230,0.93064643,667.13,666.88,0.29990403]
[1748922034426,1.816,667.14,666.88,0.29990403]
[1748922034929,1.96797739,667.13,666.88,0.29990403]
[1748922035124,1.96797338,667.12,666.88,0.29990403]
[1748922035323,0.93074932,667.11,666.88,0.29990403]
[1748922035524,1.03731948,667.1,666.88,0.29990403]
[1748922035829,1.03732014,667.09,666.88,0.29990403]
[1748922036024,1.03731628,667.08,666.88,0.29990403]
[1748922036228,1.96807163,667.11,666.88,0.29990403]
[1748922036627,1.03731759,667.1,666.88,0.29990403]
[1748922036827,1.96807684,667.09,666.88,0.29990403]
[1748922037129,0.93075154,667.08,666.88,0.29990403]
[1748922037424,1.96807163,667.11,666.88,0.29990403]
[1748922037629,0.93075189,667.1,666.88,0.29990403]
[1748922037929,1.96807163,667.11,666.88,0.29990403]
[1748922038432,1.03732951,667.1,666.88,0.29990403]
[1748922038730,1.96807163,667.11,666.88,0.29990403]
[1748922038929,1.96866805,667.1,666.88,0.29990403]
[1748922039130,0.93103438,667.09,666.88,0.29990403]
[1748922039330,1.03765481,667.08,666.88,0.29990403]
[1748922039531,1.96807163,667.11,666.88,0.29990403]
[1748922040230,1.03766139,667.1,666.88,0.29990403]
[1748922040430,1.96807163,667.11,666.88,0.29990403]
[1748922040626,1.96879175,667.1,666.88,0.29990403]
[1748922040932,1.96807163,667.11,666.88,0.29990403]
[1748922041127,1.03774745,667.1,666.88,0.29990403]
[1748922041332,0.9311449,667.09,666.88,0.29990403]
[1748922041533,1.96807163,667.11,666.88,0.29990403]
[1748922041931,0.93135473,667.1,666.88,0.29990403]
[1748922042228,0.93135749,667.09,666.88,0.29990403]
[1748922042433,1.96807163,667.11,666.88,0.29990403]
[1748922043926,0.93160245,667.1,666.88,0.29990403]
[1748922044133,1.96807163,667.11,666.88,0.29990403]
[1748922044332,0.93159553,667.1,666.88,0.29990403]
[1748922044535,1.96807163,667.11,666.88,0.29990403]
[1748922044936,0.93159569,667.1,666.88,0.29990403]
[1748922045136,1.96807163,667.11,666.88,0.29990403]
[1748922045729,0.93160148,667.1,666.88,0.29990403]
[1748922046032,1.96807163,667.11,666.88,0.29990403]
[1748922046930,0.93169856,667.1,666.88,0.29990403]
[1748922047135,1.96807163,667.11,666.88,0.29990403]
[1748922047531,0.93172275,667.1,666.88,0.29990403]
[1748922047837,0.93177441,667.09,666.88,0.29990403]
[1748922048037,0.93178229,667.08,666.88,0.29990403]
[1748922048233,1.96807163,667.11,666.88,0.29990403]
[1748922048837,0.93180174,667.1,666.88,0.29990403]
[1748922049038,1.96807163,667.11,666.88,0.29990403]
[1748922050332,0.93179653,667.1,666.88,0.29990403]
[1748922050534,1.96807163,667.11,666.88,0.29990403]
[1748922094184,0.9319431,667.1,666.88,0.29990403]
[1748922094485,0.93194237,667.09,666.88,0.29990403]
[1748922094692,0.93193792,667.09,666.88,0.29990403]
[1748922094890,1.96807163,667.11,666.88,0.29990403]
[1748922095184,0.93185489,667.1,666.88,0.29990403]
[1748922095390,0.93185816,667.09,666.88,0.29990403]
[1748922095590,1.97008614,667.08,666.88,0.29990403]
[1748922095785,1.03823701,667.07,666.88,0.29990403]
[1748922095990,1.083,667.08,666.88,0.29990403]
[1748922096592,1.03825305,667.07,666.88,0.29990403]
[1748922096791,0.9310156,667.06,666.88,0.29990403]
[1748922096986,1.083,667.08,666.88,0.29990403]
[1748922097189,1.03825037,667.07,666.88,0.29990403]
[1748922097490,0.93101516,667.06,666.88,0.29990403]
[1748922097686,1.083,667.08,666.88,0.29990403]
[1748922098089,1.03845788,667.07,666.88,0.29990403]
[1748922098384,1.083,667.08,666.88,0.29990403]
[1748922099091,1.03846043,667.07,666.88,0.29990403]
[1748922099291,0.93103034,667.06,666.88,0.29990403]
[1748922099487,0.93102838,667.05,666.88,0.29990403]
[1748922099684,0.93102838,667.04,666.88,0.29990403]
[1748922099888,1.083,667.08,666.88,0.29990403]
[1748922100089,0.92986418,667.07,666.88,0.29990403]
[1748922100290,0.92986654,667.06,666.88,0.29990403]
[1748922100487,0.92986692,667.05,666.88,0.29990403]
[1748922100792,1.083,667.08,666.88,0.29990403]
[1748922101590,1.96829058,667.07,666.88,0.29990403]
[1748922101790,0.92984938,667.06,666.88,0.29990403]
[1748922101989,1.083,667.08,666.88,0.29990403]
[1748922102790,0.92985892,667.07,666.88,0.29990403]
[1748922103098,1.083,667.08,666.88,0.29990403]
[1748922104290,0.93008818,667.07,666.88,0.29990403]
[1748922104490,0.93008818,667.06,666.88,0.29990403]
[1748922104694,1.083,667.08,666.88,0.29990403]
[1748922116805,0.93185489,667.1,666.88,0.29990403]
[1748922118907,0.92983791,667.09,666.88,0.29990403]
[1748922119107,0.93185489,667.1,666.88,0.29990403]
[1748922119905,1.0384175,667.09,666.88,0.29990403]
[1748922120101,1.03842073,667.08,666.88,0.29990403]
[1748922120305,0.93185489,667.1,666.88,0.29990403]
[1748922120502,0.771,667.07,666.88,0.29990403]
[1748922120702,1.03841637,667.06,666.88,0.29990403]
[1748922120902,0.771,667.07,666.88,0.29990403]
[1748922121203,0.92979229,667.06,666.88,0.29990403]
[1748922121407,0.92979111,667.05,666.88,0.29990403]
[1748922121608,0.771,667.07,666.88,0.29990403]
[1748922122005,1.96821262,667.06,666.88,0.29990403]
[1748922122210,1.96822488,667.05,666.88,0.29990403]
[1748922122411,0.771,667.07,666.88,0.29990403]
[1748922122810,0.92979532,667.06,666.88,0.29990403]
[1748922123013,0.771,667.07,666.88,0.29990403]
[1748922123206,1.96822823,667.06,666.88,0.29990403]
[1748922123407,1.96822334,667.05,666.88,0.29990403]
[1748922123611,0.92979272,667.04,666.88,0.29990403]
[1748922123805,0.771,667.07,666.88,0.29990403]
[1748922124213,0.92983498,667.06,666.88,0.29990403]
[1748922124406,1.03846057,667.05,666.88,0.29990403]
[1748922124611,0.92983807,667.04,666.88,0.29990403]
[1748922124912,0.771,667.07,666.88,0.29990403]
[1748922125610,1.96826354,667.06,666.88,0.29990403]
[1748922125810,0.771,667.07,666.88,0.29990403]
[1748922126406,1.03843585,667.05,666.88,0.29990403]
[1748922126606,1.96825018,667.04,666.88,0.29990403]
[1748922126808,0.771,667.07,666.88,0.29990403]
[1748922127011,0.93020586,667.03,666.88,0.29990403]
[1748922127213,1.96865284,667.02,666.88,0.29990403]
[1748922127913,0.771,667.07,666.88,0.29990403]
[1748922128108,1.96861038,667.06,666.88,0.29990403]
[1748922128311,0.771,667.07,666.88,0.29990403]
[1748922128509,0.93018536,667.06,666.88,0.29990403]
[1748922128711,0.771,667.07,666.88,0.29990403]
[1748922129210,0.93018073,667.06,666.88,0.29990403]
[1748922129409,0.93001793,667.05,666.88,0.29990403]
[1748922129609,1.0383061,667.04,666.88,0.29990403]
[1748922129809,0.771,667.07,666.88,0.29990403]
[1748922130009,0.93000759,667.06,666.88,0.29990403]
[1748922130212,1.96829671,667.05,666.88,0.29990403]
[1748922130413,1.96827606,667.04,666.88,0.29990403]
[1748922130611,0.771,667.07,666.88,0.29990403]
[1748922130915,1.96828565,667.06,666.88,0.29990403]
[1748922131115,0.771,667.07,666.88,0.29990403]
[1748922131415,1.96829854,667.06,666.88,0.29990403]
[1748922131715,0.771,667.07,666.88,0.29990403]
[1748922132112,0.92999015,667.06,666.88,0.29990403]
[1748922132309,0.771,667.07,666.88,0.29990403]
[1748922132310,1.03829786,667.05,666.88,0.29990403]
[1748922132610,1.0383006,667.04,666.88,0.29990403]
[1748922132914,0.771,667.07,666.88,0.29990403]
[1748922133315,0.93008763,667.06,666.88,0.29990403]
[1748922133616,0.771,667.07,666.88,0.29990403]
[1748922134009,0.93008885,667.06,666.88,0.29990403]
[1748922134214,1.96839071,667.05,666.88,0.29990403]
[1748922134412,0.771,667.07,666.88,0.29990403]
[1748922135111,0.93005936,667.06,666.88,0.29990403]
[1748922135317,0.771,667.07,666.88,0.29990403]
[1748922135512,0.93004756,667.06,666.88,0.29990403]
[1748922135714,1.03830302,667.05,666.88,0.29990403]
[1748922135909,0.771,667.07,666.88,0.29990403]
[1748922136110,1.03830302,667.06,666.88,0.29990403]
[1748922136312,0.771,667.07,666.88,0.29990403]
[1748922137614,1.03828779,667.06,666.88,0.29990403]
[1748922137811,1.96833408,667.06,666.88,0.29990403]
[1748922138015,0.771,667.07,666.88,0.29990403]
[1748922138219,1.03827389,667.06,666.88,0.29990403]
[1748922138519,0.771,667.07,666.88,0.29990403]
[1748922138723,1.03827664,667.06,666.88,0.29990403]
[1748922139014,0.771,667.07,666.88,0.29990403]
[1748922139218,0.93006105,667.06,666.88,0.29990403]
[1748922139515,0.93000215,667.05,666.88,0.29990403]
[1748922139715,1.03829709,667.04,666.88,0.29990403]
[1748922139919,0.771,667.07,666.88,0.29990403]
[1748922140116,1.03814985,667.06,666.88,0.29990403]
[1748922140316,0.92975275,667.05,666.88,0.29990403]
[1748922140620,0.771,667.07,666.88,0.29990403]
[1748922140822,1.03800543,667.06,666.88,0.29990403]
[1748922141117,0.92965608,667.05,666.88,0.29990403]
[1748922141322,0.771,667.07,666.88,0.29990403]
[1748922141521,1.96755894,667.06,666.88,0.29990403]
[1748922141715,0.771,667.07,666.88,0.29990403]
[1748922141920,1.96745369,667.06,666.88,0.29990403]
[1748922142118,0.9295561,667.05,666.88,0.29990403]
[1748922142424,0.771,667.07,666.88,0.29990403]
[1748922143217,0.92958221,667.06,666.88,0.29990403]
[1748922143421,0.771,667.07,666.88,0.29990403]
[1748922144121,0.92949266,667.06,666.88,0.29990403]
[1748922144620,0.92947988,667.05,666.88,0.29990403]
[1748922144819,1.03768877,667.04,666.88,0.29990403]
[1748922145025,0.92948599,667.03,666.88,0.29990403]
[1748922145222,0.92949266,667.06,666.88,0.29990403]
[1748922145524,0.92947718,667.05,666.88,0.29990403]
[1748922145725,0.92949266,667.06,666.88,0.29990403]
[1748922147019,1.0377103,667.05,666.88,0.29990403]
[1748922147325,0.92949266,667.06,666.88,0.29990403]
[1748922147826,2.13470765,667.05,666.88,0.29990403]
[1748922148022,1.097,667.05,666.88,0.29990403]
[1748922148218,1.96713296,667.04,666.88,0.29990403]
[1748922148526,1.097,667.05,666.88,0.29990403]
[1748922149127,1.03747464,667.04,666.88,0.29990403]
[1748922149323,1.03747464,667.03,666.88,0.29990403]
[1748922149527,0.9291991,667.02,666.88,0.29990403]
[1748922149726,1.03748168,667.02,666.88,0.29990403]
[1748922149926,1.097,667.05,666.88,0.29990403]
[1748922150326,1.03745854,667.04,666.88,0.29990403]
[1748922150525,1.03745854,667.03,666.88,0.29990403]
[1748922150720,1.097,667.05,666.88,0.29990403]
[1748922150922,0.92920951,667.04,666.88,0.29990403]
[1748922151120,1.9666608,667.03,666.88,0.29990403]
[1748922151325,0.92920902,667.02,666.88,0.29990403]
[1748922151523,1.097,667.05,666.88,0.29990403]
[1748922152120,0.929201,667.04,666.88,0.29990403]
[1748922152321,1.03751453,667.03,666.88,0.29990403]
[1748922152528,1.097,667.05,666.88,0.29990403]
[1748922152726,1.96672534,667.04,666.88,0.29990403]
[1748922152923,0.92920713,667.03,666.88,0.29990403]
[1748922153225,1.03752334,667.02,666.88,0.29990403]
[1748922153427,0.92920587,667.01,666.88,0.29990403]
[1748922153629,0.9292033,667.0,666.88,0.29990403]
[1748922153930,0.92920448,666.99,666.88,0.29990403]
[1748922154130,1.96672482,666.98,666.88,0.29990403]
[1748922154324,1.097,667.05,666.88,0.29990403]
[1748922155525,1.03752365,667.04,666.88,0.29990403]
[1748922155930,0.92920436,667.03,666.88,0.29990403]
[1748922156130,1.03752365,667.04,666.88,0.29990403]
[1748922156731,1.03751658,667.03,666.88,0.29990403]
[1748922156930,1.03752365,667.04,666.88,0.29990403]
[1748922157327,0.92918065,667.03,666.88,0.29990403]
[1748922157527,0.92917924,667.02,666.88,0.29990403]
[1748922157732,1.03749081,667.01,666.88,0.29990403]
[1748922157926,1.03752365,667.04,666.88,0.29990403]
[1748922158333,1.03744868,667.03,666.88,0.29990403]
[1748922158526,1.03752365,667.04,666.88,0.29990403]
[1748922158731,1.96512827,667.03,666.88,0.29990403]
[1748922158930,1.03752365,667.04,666.88,0.29990403]
[1748922159127,1.03629979,667.03,666.88,0.29990403]
[1748922159325,0.92811395,667.02,666.88,0.29990403]
[1748922159531,1.03752365,667.04,666.88,0.29990403]
[1748922159928,1.96380985,667.03,666.88,0.29990403]
[1748922160132,1.03597315,667.02,666.88,0.29990403]
[1748922160334,1.03752365,667.04,666.88,0.29990403]
[1748922160728,1.03596415,667.03,666.88,0.29990403]
[1748922160933,1.03752365,667.04,666.88,0.29990403]
[1748922161432,0.92788756,667.03,666.88,0.29990403]
[1748922161633,1.03606274,667.02,666.88,0.29990403]
[1748922161834,0.928169,667.01,666.88,0.29990403]
[1748922162233,1.03637391,667.0,666.88,0.29990403]
[1748922162431,0.92814978,666.99,666.88,0.29990403]
[1748922162635,1.96451028,666.98,666.88,0.29990403]
[1748922162832,0.928169,667.01,666.88,0.29990403]
[1748922163036,0.92816889,667.0,666.88,0.29990403]
[1748922163233,0.928169,667.01,666.88,0.29990403]
[1748922163834,0.92817343,667.0,666.88,0.29990403]
[1748922164039,0.928169,667.01,666.88,0.29990403]
[1748922165945,0.92808077,667.0,666.88,0.29990403]
[1748922166144,0.928169,667.01,666.88,0.29990403]
[1748922166641,0.92807875,667.0,666.88,0.29990403]
[1748922166844,1.96402977,666.99,666.88,0.29990403]
[1748922167046,0.928169,667.01,666.88,0.29990403]
[1748922167743,1.03593598,667.0,666.88,0.29990403]
[1748922167944,1.96401488,666.99,666.88,0.29990403]
[1748922168144,0.92809142,666.98,666.88,0.29990403]
[1748922168345,1.03594919,666.97,666.88,0.29990403]
[1748922168541,1.96412818,666.96,666.88,0.29990403]
[1748922168742,1.96415629,666.95,666.88,0.29990403]
[1748922168942,0.928169,667.01,666.88,0.29990403]
[1748922169342,1.96433915,667.0,666.88,0.29990403]
[1748922169547,1.03612771,666.99,666.88,0.29990403]
[1748922169746,1.03612406,666.98,666.88,0.29990403]
[1748922169949,0.92837234,666.97,666.88,0.29990403]
[1748922170147,0.9284128,666.96,666.88,0.29990403]
[1748922170349,1.03623836,666.95,666.88,0.29990403]
[1748922170648,1.695169,667.01,666.88,0.29990403]
[1748922171748,0.92799727,667.0,666.88,0.29990403]
[1748922171950,1.0362658,666.99,666.88,0.29990403]
[1748922172150,1.96447292,666.98,666.88,0.29990403]
[1748922172451,1.695169,667.01,666.88,0.29990403]
[1748922173447,1.96449219,667.0,666.88,0.29990403]
[1748922173747,1.9646683,666.99,666.88,0.29990403]
[1748922174052,1.03661211,666.98,666.88,0.29990403]
[1748922174249,1.695169,667.01,666.88,0.29990403]
[1748922174446,0.92811767,667.0,666.88,0.29990403]
[1748922174644,1.695169,667.01,666.88,0.29990403]
[1748922174850,1.0366532,666.99,666.88,0.29990403]
[1748922175051,1.03666095,666.98,666.88,0.29990403]
[1748922175245,1.695169,667.01,666.88,0.29990403]
[1748922175546,1.03668009,667.0,666.88,0.29990403]
[1748922175747,1.695169,667.01,666.88,0.29990403]
[1748922176751,1.03667717,667.0,666.88,0.29990403]
[1748922176953,1.03667546,666.99,666.88,0.29990403]
[1748922177149,1.695169,667.01,666.88,0.29990403]
[1748922177354,1.03666392,667.0,666.88,0.29990403]
[1748922177555,0.92815518,666.99,666.88,0.29990403]
[1748922177849,0.92815518,666.98,666.88,0.29990403]
[1748922178053,0.92815501,666.97,666.88,0.29990403]
[1748922178252,1.695169,667.01,666.88,0.29990403]
[1748922178653,1.0366685,667.0,666.88,0.29990403]
[1748922178853,1.695169,667.01,666.88,0.29990403]
[1748922179455,0.92813678,667.0,666.88,0.29990403]
[1748922179655,1.695169,667.01,666.88,0.29990403]
[1748922181459,0.92795263,667.0,666.88,0.29990403]
[1748922181760,0.92795263,666.99,666.88,0.29990403]
[1748922181960,1.96434303,666.98,666.88,0.29990403]
[1748922182160,1.695169,667.01,666.88,0.29990403]
[1748922182360,0.92797422,667.0,666.88,0.29990403]
[1748922182558,0.92796114,666.99,666.88,0.29990403]
[1748922182757,0.92796114,666.98,666.88,0.29990403]
[1748922182955,1.695169,667.01,666.88,0.29990403]
[1748922183159,1.96442388,667.0,666.88,0.29990403]
[1748922183359,0.92797502,666.99,666.88,0.29990403]
[1748922183554,1.695169,667.01,666.88,0.29990403]
[1748922184158,0.92785704,667.0,666.88,0.29990403]
[1748922184357,1.03630835,666.99,666.88,0.29990403]
[1748922184563,1.695169,667.01,666.88,0.29990403]
[1748922184758,1.03630593,667.0,666.88,0.29990403]
[1748922185059,1.9641554,666.99,666.88,0.29990403]
[1748922185258,1.695169,667.01,666.88,0.29990403]
[1748922185662,0.92801786,667.0,666.88,0.29990403]
[1748922185863,1.695169,667.01,666.88,0.29990403]
[1748922186259,1.03630536,667.0,666.88,0.29990403]
[1748922186461,1.03630476,666.99,666.88,0.29990403]
[1748922186657,1.03630581,666.98,666.88,0.29990403]
[1748922186862,1.695169,667.01,666.88,0.29990403]
[1748922187858,1.03629182,667.0,666.88,0.29990403]
[1748922188061,0.92800895,666.99,666.88,0.29990403]
[1748922188261,0.92800895,666.98,666.88,0.29990403]
[1748922188563,1.695169,667.01,666.88,0.29990403]
[1748922188763,0.92801268,667.0,666.88,0.29990403]
[1748922188964,0.9280119,666.99,666.88,0.29990403]
[1748922190265,0.92801117,666.98,666.88,0.29990403]
[1748922190565,0.9280119,666.99,666.88,0.29990403]
[1748922192365,0.92799841,666.98,666.88,0.29990403]
[1748922192560,0.9280119,666.99,666.88,0.29990403]
[1748922192765,1.03622284,666.98,666.88,0.29990403]
[1748922192963,0.92794335,666.97,666.88,0.29990403]
[1748922193269,0.9280119,666.99,666.88,0.29990403]
[1748922193464,0.92794217,666.96,666.88,0.29990403]
[1748922193669,1.03620979,666.95,666.88,0.29990403]
[1748922193872,1.96425318,666.94,666.88,0.29990403]
[1748922194171,1.03620948,666.93,666.88,0.29990403]
[1748922194371,0.92794217,666.96,666.88,0.29990403]
[1748922194670,1.03620968,666.95,666.88,0.29990403]
[1748922194871,0.92794217,666.96,666.88,0.29990403]
[1748922194872,0.92803727,666.94,666.88,0.29990403]
[1748922195166,0.92804052,666.93,666.88,0.29990403]
[1748922195374,0.92794217,666.96,666.88,0.29990403]
[1748922195565,1.96421962,666.92,666.88,0.29990403]
[1748922195768,0.92803647,666.91,666.88,0.29990403]
[1748922196070,1.96421962,666.92,666.88,0.29990403]
[1748922196669,0.92803723,666.91,666.88,0.29990403]
[1748922196869,1.96422047,666.9,666.88,0.29990403]
[1748922197066,0.92803741,666.89,666.88,0.29990403]
[1748922197271,1.96421962,666.92,666.88,0.29990403]
[1748922197467,0.92812017,666.91,666.88,0.29990403]
[1748922197672,1.96421962,666.92,666.88,0.29990403]
[1748922197972,0.92811988,666.91,666.88,0.29990403]
[1748922198173,0.92812072,666.9,666.88,0.29990403]
[1748922198369,0.92811407,666.89,666.88,0.29990403]
[1748922198570,1.96421962,666.92,666.88,0.29990403]
[1748922198867,1.03618009,666.91,666.88,0.29990403]
[1748922199068,0.92812547,666.9,666.88,0.29990403]
[1748922199274,1.96421962,666.92,666.88,0.29990403]
[1748922199469,0.92813925,666.91,666.88,0.29990403]
[1748922199670,1.96421962,666.92,666.88,0.29990403]
[1748922199871,1.03619294,666.91,666.88,0.29990403]
[1748922200072,0.92813069,666.9,666.88,0.29990403]
[1748922200274,1.96421962,666.92,666.88,0.29990403]
[1748922200471,0.92813424,666.91,666.88,0.29990403]
[1748922200666,0.92810566,666.9,666.88,0.29990403]
[1748922200873,0.92813861,666.89,666.88,0.29990403]
[1748922201174,1.96421962,666.92,666.88,0.29990403]
[1748922201671,1.03619881,666.91,666.88,0.29990403]
[1748922201971,1.96421962,666.92,666.88,0.29990403]
[1748922202668,1.03620216,666.91,666.88,0.29990403]
[1748922202871,1.96421962,666.92,666.88,0.29990403]
[1748922203172,1.03620325,666.91,666.88,0.29990403]
[1748922203370,1.96421962,666.92,666.88,0.29990403]
[1748922203769,1.96433956,666.91,666.88,0.29990403]
[1748922203968,0.92813617,666.9,666.88,0.29990403]
[1748922204172,0.92813627,666.89,666.88,0.29990403]
[1748922204369,1.96421962,666.92,666.88,0.29990403]
[1748922205076,0.92813492,666.91,666.88,0.29990403]
[1748922205280,1.96421962,666.92,666.88,0.29990403]
[1748922206470,0.9281323,666.91,666.88,0.29990403]
[1748922206673,1.96421962,666.92,666.88,0.29990403]
[1748922207470,0.92813817,666.91,666.88,0.29990403]
[1748922207675,1.96421962,666.92,666.88,0.29990403]
[1748922207971,0.92813968,666.91,666.88,0.29990403]
[1748922208175,1.96421962,666.92,666.88,0.29990403]
[1748922215279,0.92815658,666.91,666.88,0.29990403]
[1748922215485,1.96421962,666.92,666.88,0.29990403]
[1748922215781,0.92815717,666.91,666.88,0.29990403]
[1748922215982,1.96421962,666.92,666.88,0.29990403]
[1748922217881,0.92815522,666.91,666.88,0.29990403]
[1748922218083,1.96421962,666.92,666.88,0.29990403]
[1748922218578,0.92815638,666.91,666.88,0.29990403]
[1748922218782,0.92815638,666.9,666.88,0.29990403]
[1748922218983,1.96421962,666.92,666.88,0.29990403]
[1748922219179,0.92815852,666.91,666.88,0.29990403]
[1748922219385,0.92815731,666.9,666.88,0.29990403]
[1748922219578,1.96421962,666.92,666.88,0.29990403]
[1748922222382,0.92819959,666.91,666.88,0.29990403]
[1748922222585,1.96421962,666.92,666.88,0.29990403]
[1748922223384,0.92820872,666.91,666.88,0.29990403]
[1748922223585,0.92821553,666.9,666.88,0.29990403]
[1748922223789,1.96421962,666.92,666.88,0.29990403]
[1748922223991,0.92822463,666.91,666.88,0.29990403]
[1748922224185,1.96421962,666.92,666.88,0.29990403]
[1748922224388,0.92877798,666.91,666.88,0.29990403]
[1748922224588,1.96421962,666.92,666.88,0.29990403]
[1748922225387,0.92875273,666.91,666.88,0.29990403]
[1748922225590,0.92875273,666.9,666.88,0.29990403]
[1748922225885,1.96421962,666.92,666.88,0.29990403]
[1748922226786,0.92875808,666.91,666.88,0.29990403]
[1748922226984,0.92877388,666.9,666.88,0.29990403]
[1748922227189,1.96421962,666.92,666.88,0.29990403]
[1748922228186,0.92877869,666.91,666.88,0.29990403]
[1748922228388,1.96421962,666.92,666.88,0.29990403]
[1748922229287,0.92877633,666.91,666.88,0.29990403]
[1748922229484,0.92884156,666.9,666.88,0.29990403]
[1748922229688,1.96421962,666.92,666.88,0.29990403]
[1748922229891,0.92898996,666.91,666.88,0.29990403]
[1748922230093,1.96421962,666.92,666.88,0.29990403]
[1748922230487,0.92902656,666.91,666.88,0.29990403]
[1748922230691,1.96421962,666.92,666.88,0.29990403]
[1748922231092,0.9290374,666.91,666.88,0.29990403]
[1748922348375,0.9290374,666.91,666.88,1.41976297]
[1748922348768,0.9290374,666.91,666.88,0.29990403]
[1748922353872,0.9290374,666.91,666.88,1.4208959]
[1748922354078,0.9290374,666.91,666.88,0.29990403]
[1748922359682,0.767,667.01,666.88,0.29990403]
[1748922367981,0.767,667.01,666.88,1.42253403]
[1748922368184,0.767,667.01,666.89,1.12263]
[1748922368385,0.767,667.01,666.9,0.29989503]
[1748922368585,1.48209079,667.38,666.9,0.29989503]
[1748922369180,1.48209079,667.37,666.9,0.29989503]
[1748922370784,0.961,667.36,666.9,0.29989503]
[1748922371287,2.19985721,667.35,666.9,0.29989503]
[1748922371487,0.91907136,667.34,666.9,1.42255057]
[1748922371688,1.3,667.34,666.9,1.42255057]
[1748922371881,0.91903245,667.33,666.9,1.42255057]
[1748922372082,1.3,667.34,666.9,1.42255057]
[1748922372583,0.894,667.33,666.9,1.42255057]
[1748922372888,0.91866898,667.32,666.9,1.42255057]
[1748922373084,0.894,667.33,666.9,1.42255057]
[1748922373482,0.894,667.33,666.9,0.29989503]
[1748922374184,0.91860574,667.32,666.9,0.29989503]
[1748922374490,0.91865019,667.31,666.9,0.29989503]
[1748922374689,1.03857484,667.3,666.9,0.29989503]
[1748922374884,0.894,667.33,666.9,0.29989503]
[1748922375693,1.03858854,667.32,666.9,0.29989503]
[1748922375893,0.894,667.33,666.9,0.29989503]
[1748922375894,1.03858854,667.31,666.9,0.29989503]
[1748922376095,1.03857586,667.3,666.9,0.29989503]
[1748922376295,0.9186105,667.3,666.9,0.29989503]
[1748922376490,0.9186105,667.29,666.9,0.29989503]
[1748922376691,0.9186105,667.3,666.9,0.29989503]
[1748922377194,1.95719861,667.29,666.9,0.29989503]
[1748922377395,0.9186105,667.3,666.9,0.29989503]
[1748922377695,1.03857596,667.29,666.9,0.29989503]
[1748922377892,0.91863555,667.28,666.9,0.29989503]
[1748922378097,0.9186105,667.3,666.9,0.29989503]
[1748922378491,0.91862898,667.29,666.9,0.29989503]
[1748922378698,0.9186283,667.28,666.9,0.29989503]
[1748922378999,1.03857353,667.27,666.9,0.29989503]
[1748922379194,0.9186105,667.3,666.9,0.29989503]
[1748922379793,1.95689862,667.29,666.9,0.29989503]
[1748922379991,0.9186105,667.3,666.9,0.29989503]
[1748922380797,1.03862357,667.29,666.9,0.29989503]
[1748922380996,0.91835711,667.28,666.9,0.29989503]
[1748922381194,0.91835717,667.27,666.9,0.29989503]
[1748922381398,0.9186105,667.3,666.9,0.29989503]
[1748922381798,1.03862078,667.29,666.9,0.29989503]
[1748922381997,1.03862443,667.28,666.9,0.29989503]
[1748922382194,0.9186105,667.3,666.9,0.29989503]
[1748922382499,1.03862281,667.29,666.9,0.29989503]
[1748922382696,1.03862793,667.28,666.9,0.29989503]
[1748922382999,0.9186105,667.3,666.9,0.29989503]
[1748922383199,0.91836202,667.29,666.9,0.29989503]
[1748922383397,0.9186105,667.3,666.9,0.29989503]
[1748922384300,1.03876887,667.29,666.9,0.29989503]
[1748922384497,0.9186105,667.3,666.9,0.29989503]
[1748922385397,1.95702691,667.29,666.9,0.29989503]
[1748922385601,0.9186105,667.3,666.9,0.29989503]
[1748922385807,1.03881456,667.29,666.9,0.29989503]
[1748922386006,1.03882287,667.28,666.9,0.29989503]
[1748922386303,0.9186105,667.3,666.9,0.29989503]
[1748922386504,1.03882569,667.29,666.9,0.29989503]
[1748922386700,1.03882572,667.28,666.9,0.29989503]
[1748922386899,0.9186105,667.3,666.9,0.29989503]
[1748922387102,0.91832701,667.29,666.9,0.29989503]
[1748922387306,0.9186105,667.3,666.9,0.29989503]
[1748922387504,0.91841828,667.29,666.9,0.29989503]
[1748922387699,0.9186105,667.3,666.9,0.29989503]
[1748922388206,1.95725918,667.29,666.9,0.29989503]
[1748922388408,0.9186105,667.3,666.9,0.29989503]
[1748922388908,0.91841455,667.29,666.9,0.29989503]
[1748922389207,1.03883186,667.28,666.9,0.29989503]
[1748922389410,0.9186105,667.3,666.9,1.42265162]
[1748922389609,1.03882738,667.29,666.9,0.29989503]
[1748922389908,0.9186105,667.3,666.9,1.42265162]
[1748922390104,1.03884395,667.29,666.9,1.42265162]
[1748922390408,0.9186105,667.3,666.9,1.42265162]
[1748922391003,0.9186105,667.3,666.9,0.29989503]
[1748922391004,1.03885992,667.29,666.9,0.29989503]
[1748922391206,1.03881497,667.28,666.9,0.29989503]
[1748922391503,0.9186105,667.3,666.9,0.29989503]
[1748922391812,0.91839768,667.29,666.9,0.29989503]
[1748922392008,1.03881756,667.28,666.9,0.29989503]